bitfinex/quotes_SOLUSD_20241110
["timestamp","ask_amount","ask_price","bid_price","bid_amount"]
[1731267173412,38.62686583,210.5,210.45,16.631]
[1731267173588,38.62686583,210.48,210.45,16.631]
[1731267173784,38.62686583,210.48,210.45,11.8793]
[1731267174013,38.62686583,210.49,210.45,11.8793]
[1731267174903,38.62686583,210.48,210.45,11.8793]
[1731267177383,38.62686583,210.47,210.45,11.8793]
[1731267177585,38.62686583,210.47,210.4,46.62981625]
[1731267177793,38.62686583,210.47,210.42,23.776884]
[1731267178205,38.62686583,210.48,210.42,23.776884]
[1731267178392,38.62686583,210.49,210.43,38.62686583]
[1731267178600,28.42,210.53,210.44,38.62686583]
[1731267178601,38.62686583,210.5,210.44,38.62686583]
[1731267178909,38.62686583,210.5,210.43,38.62686583]
[1731267179287,38.62686583,210.5,210.44,23.776884]
[1731267180206,38.62686583,210.49,210.42,62.40374983]
[1731267180413,67.04686583,210.53,210.46,62.40374983]
[1731267180604,38.62686583,210.53,210.47,38.62686583]
[1731267180909,38.62686583,210.56,210.5,62.40374983]
[1731267181090,38.62686583,210.56,210.5,38.62686583]
[1731267181288,38.62686583,210.56,210.49,38.62686583]
[1731267181488,38.62686583,210.56,210.5,62.40374983]
[1731267181712,38.62686583,210.56,210.5,38.62686583]
[1731267182300,38.62686583,210.57,210.51,16.6262]
[1731267183109,38.62686583,210.58,210.51,55.25306583]
[1731267183620,0.12549,210.58,210.52,38.62686583]
[1731267183791,38.62686583,210.58,210.51,55.25306583]
[1731267185114,38.62686583,210.56,210.51,23.776884]
[1731267185715,38.62686583,210.56,210.5,38.62686583]
[1731267185916,38.75235583,210.58,210.51,38.62686583]
[1731267186098,38.62686583,210.57,210.52,16.6254]
[1731267187505,38.62686583,210.54,210.52,16.6254]
[1731267187706,38.62686583,210.53,210.5,4.7504]
[1731267187895,38.62686583,210.51,210.5,4.7504]
[1731267188095,38.62686583,210.51,210.44,38.62686583]
[1731267188096,0.12549,210.5,210.45,4.7515]
[1731267188295,38.62686583,210.46,210.45,4.7515]
[1731267188701,38.62686583,210.47,210.45,4.7515]
[1731267189298,38.62686583,210.47,210.44,11.8798]
[1731267189596,38.62686583,210.46,210.44,11.8798]
[1731267189805,38.62686583,210.45,210.44,11.8798]
[1731267190914,38.62686583,210.45,210.38,38.62686583]
[1731267190915,6.35745156,210.45,210.38,38.62686583]
[1731267191111,6.35745156,210.45,210.39,16.6356]
[1731267191418,6.35745156,210.45,210.4,23.776884]
[1731267191996,38.62686583,210.46,210.4,62.40374983]
[1731267192204,38.62686583,210.47,210.4,62.40374983]
[1731267193026,38.62686583,210.47,210.41,16.6341]
[1731267193407,38.62686583,210.46,210.41,16.6341]
[1731267195440,38.62686583,210.42,210.41,16.6341]
[1731267195725,38.62686583,210.45,210.41,16.6341]
[1731267196915,38.62686583,210.45,210.41,11.8815]
[1731267197305,15.251,210.5,210.44,38.62686583]
[1731267197518,15.251,210.5,210.46,38.62686583]
[1731267198129,15.251,210.5,210.45,38.62686583]
[1731267198429,67.04686583,210.52,210.45,38.62686583]
[1731267198629,0.12549,210.46,210.41,11.8815]
[1731267198805,38.62686583,210.45,210.41,11.8815]
[1731267199013,38.62686583,210.44,210.41,11.8815]
[1731267200334,67.04686583,210.46,210.41,11.8815]
[1731267200532,0.12549,210.48,210.42,38.62686583]
[1731267200533,38.62686583,210.48,210.42,38.62686583]
[1731267200715,67.04686583,210.5,210.44,38.62686583]
[1731267200912,38.62686583,210.52,210.46,38.62686583]
[1731267201117,38.62686583,210.5,210.48,4.751]
[1731267202533,38.62686583,210.5,210.46,16.6298]
[1731267202742,20.7637,210.55,210.46,55.25666583]
[1731267202743,38.62686583,210.52,210.46,55.25666583]
[1731267203230,38.62686583,210.51,210.46,16.6298]
[1731267205815,28.42,210.5,210.46,16.6298]
[1731267206433,44.4341,210.55,210.49,38.62686583]
[1731267206612,28.42,210.55,210.51,38.62686583]
[1731267206812,0.12549,210.6,210.54,38.62686583]
[1731267207026,0.12549,210.6,210.55,38.62686583]
[1731267207338,0.12549,210.6,210.56,55.24916583]
[1731267207635,0.12549,210.6,210.56,16.6223]
[1731267207838,67.04686583,210.57,210.51,11.8754]
[1731267208133,38.62686583,210.56,210.49,38.62686583]
[1731267208339,0.12549,210.56,210.5,38.62686583]
[1731267208541,28.42,210.57,210.51,38.62686583]
[1731267208839,67.17235583,210.6,210.54,38.62686583]
[1731267209330,28.54549,210.6,210.55,16.623]
[1731267209638,38.62686583,210.58,210.55,16.623]
[1731267209844,67.17235583,210.6,210.55,16.623]
[1731267210419,28.54549,210.6,210.55,16.623]
[1731267210631,0.12549,210.6,210.55,55.24986583]
[1731267210834,38.75235583,210.6,210.55,16.623]
[1731267212638,38.62686583,210.58,210.55,11.8736]
[1731267213138,38.62686583,210.59,210.55,11.8736]
[1731267213939,38.62686583,210.59,210.52,38.62686583]
[1731267214547,0.12549,210.6,210.55,38.62686583]
[1731267214749,0.12549,210.6,210.57,38.62686583]
[1731267215537,0.12549,210.6,210.56,38.62686583]
[1731267216141,0.12549,210.6,210.57,4.749]
[1731267216350,38.62686583,210.58,210.56,11.8725]
[1731267217625,38.62686583,210.59,210.56,16.6217]
[1731267217857,38.75235583,210.6,210.56,16.6217]
[1731267218436,0.12549,210.6,210.54,38.62686583]
[1731267218651,0.12549,210.6,210.55,38.62686583]
[1731267219132,38.75235583,210.6,210.53,38.62686583]
[1731267219843,0.12549,210.6,210.55,38.62686583]
[1731267220640,0.12549,210.6,210.56,16.6223]
[1731267221350,0.12549,210.6,210.57,38.62686583]
[1731267221930,0.12549,210.6,210.56,55.24916583]
[1731267222733,0.12549,210.6,210.56,16.6223]
[1731267223546,38.62686583,210.59,210.56,16.6223]
[1731267224249,38.75235583,210.6,210.56,16.6223]
[1731267224826,38.75235583,210.6,210.56,11.8731]
[1731267226433,0.12549,210.6,210.54,38.62686583]
[1731267226952,16.5103,210.75,210.62,0.1]
[1731267227131,34.6983,210.77,210.69,38.62686583]
[1731267227329,16.5103,210.8,210.69,62.40374983]
[1731267227535,1e-08,210.7,210.69,62.40374983]
[1731267228634,1e-08,210.7,210.69,67.15004983]
[1731267230258,1e-08,210.7,210.69,43.37316583]
[1731267230549,1e-08,210.7,210.69,4.7463]
[1731267231160,1e-08,210.7,210.68,11.8662]
[1731267231341,1e-08,210.7,210.68,16.6127]
[1731267231541,38.62686584,210.7,210.68,11.8662]
[1731267231745,38.62686583,210.69,210.68,11.8662]
[1731267232138,38.62686583,210.69,210.64,4.7473]
[1731267232349,38.62686583,210.68,210.64,4.7473]
[1731267232551,38.62686583,210.67,210.63,11.8687]
[1731267232763,38.62686583,210.64,210.57,38.62686583]
[1731267233058,38.62686583,210.63,210.56,38.62686583]
[1731267233261,38.62686583,210.62,210.55,38.62686583]
[1731267233469,38.62686583,210.61,210.54,38.62686583]
[1731267233839,38.62686583,210.62,210.55,38.62686583]
[1731267234142,38.62686583,210.61,210.55,50.50046583]
[1731267235387,38.62686583,210.62,210.55,55.24986583]
[1731267235858,67.04686583,210.61,210.55,55.24986583]
[1731267236043,38.62686583,210.58,210.55,16.623]
[1731267236640,28.42,210.59,210.5,11.8763]
[1731267236641,67.04686583,210.56,210.5,11.8763]
[1731267236844,67.04686583,210.56,210.51,38.62686583]
[1731267236845,28.42,210.56,210.51,38.62686583]
[1731267237045,16.226,210.59,210.5,11.8763]
[1731267237046,44.646,210.59,210.54,38.62686583]
[1731267237458,44.646,210.59,210.55,4.7494]
[1731267238743,83.27286583,210.59,210.55,4.7494]
[1731267239361,83.27286583,210.59,210.52,38.62686583]
[1731267240051,83.27286583,210.59,210.5,11.8763]
[1731267240052,28.42,210.59,210.54,38.62686583]
[1731267240456,38.62686583,210.57,210.5,50.50316583]
[1731267240659,28.42,210.59,210.53,38.62686583]
[1731267240859,28.42,210.57,210.51,38.62686583]
[1731267241053,67.04686583,210.55,210.5,11.8763]
[1731267241770,67.04686583,210.53,210.47,43.37796583]
[1731267241951,28.42,210.53,210.48,38.62686583]
[1731267242362,67.04686583,210.53,210.47,43.37796583]
[1731267242567,28.42,210.53,210.48,38.62686583]
[1731267242889,67.04686583,210.53,210.47,43.37796583]
[1731267243045,38.62686583,210.53,210.47,43.37796583]
[1731267243254,15.954,210.55,210.52,38.62686583]
[1731267243465,15.954,210.55,210.53,4.7499]
[1731267244270,15.954,210.55,210.51,16.6256]
[1731267244470,38.62686583,210.54,210.51,11.8755]
[1731267244667,83.00086583,210.55,210.51,16.6258]
[1731267244865,44.374,210.55,210.51,16.6258]
[1731267245271,28.42,210.55,210.51,16.6258]
[1731267245582,28.42,210.56,210.52,38.62686583]
[1731267246250,28.42,210.56,210.51,55.25266583]
[1731267246451,28.42,210.57,210.53,4.7499]
[1731267246774,83.00086583,210.6,210.53,55.25146583]
[1731267246963,44.374,210.6,210.54,38.62686583]
[1731267247272,15.954,210.6,210.55,38.62686583]
[1731267247451,15.954,210.6,210.56,38.62686583]
[1731267247649,67.04686583,210.63,210.56,38.62686583]
[1731267248766,67.04686583,210.63,210.57,4.749]
[1731267249071,38.62686583,210.61,210.57,4.749]
[1731267249450,28.42,210.6,210.54,38.62686583]
[1731267249667,67.04686583,210.6,210.55,4.7494]
[1731267250351,67.04686583,210.58,210.54,11.8742]
[1731267250553,67.04686583,210.58,210.54,16.6238]
[1731267250967,67.04686583,210.58,210.54,11.8742]
[1731267251165,28.42,210.55,210.5,4.7505]
[1731267251373,38.62686583,210.52,210.49,11.8765]
[1731267252180,38.62686583,210.5,210.46,4.7513]
[1731267252468,38.62686583,210.5,210.44,16.6311]
[1731267252676,67.04686583,210.51,210.44,55.25796583]
[1731267252856,38.62686583,210.5,210.44,55.25796583]
[1731267253176,67.04686583,210.5,210.44,55.25796583]
[1731267253375,67.04686583,210.5,210.44,16.6311]
[1731267254272,67.04686583,210.5,210.44,38.62686583]
[1731267254653,67.04686583,210.5,210.43,38.62686583]
[1731267254951,67.04686583,210.46,210.4,38.62686583]
[1731267255155,38.62686583,210.51,210.44,38.62686583]
[1731267255354,28.42,210.53,210.45,7.01368091]
[1731267255569,15.0038,210.55,210.45,7.01368091]
[1731267255770,15.0038,210.55,210.49,38.62686583]
[1731267256875,15.0038,210.55,210.49,4.7507]
[1731267256876,53.63066583,210.55,210.49,4.7507]
[1731267258361,15.0038,210.55,210.49,55.25456583]
[1731267258572,15.0038,210.55,210.49,16.6277]
[1731267258771,15.0038,210.55,210.49,55.25456583]
[1731267258972,53.63066583,210.6,210.53,38.62686583]
[1731267259186,15.0038,210.6,210.55,38.62686583]
[1731267259577,53.63066583,210.6,210.53,38.62686583]
[1731267259761,53.63066583,210.6,210.49,16.6277]
[1731267259762,38.62686583,210.57,210.5,38.62686583]
[1731267259961,38.62686583,210.56,210.49,55.25456583]
[1731267260363,38.62686583,210.54,210.49,11.877]
[1731267261194,38.62686583,210.51,210.44,50.50626583]
[1731267262167,38.62686583,210.54,210.48,38.62686583]
[1731267262581,38.62686583,210.55,210.49,4.7508]
[1731267262783,38.62686583,210.54,210.49,16.6278]
[1731267263868,38.62686583,210.52,210.45,38.62686583]
[1731267264072,38.62686583,210.54,210.47,38.62686583]
[1731267264468,38.62686583,210.54,210.48,4.751]
[1731267267284,38.62686583,210.53,210.46,38.62686583]
[1731267267471,38.62686583,210.53,210.46,55.25696583]
[1731267267673,38.62686583,210.54,210.48,38.62686583]
[1731267268765,38.62686583,210.54,210.49,4.7508]
[1731267269590,38.62686583,210.52,210.46,11.8787]
[1731267269783,38.62686583,210.53,210.47,38.62686583]
[1731267270472,38.62686583,210.5,210.44,4.7517]
[1731267270688,38.62686583,210.49,210.44,4.7517]
[1731267270877,38.62686583,210.47,210.44,4.7517]
[1731267271072,38.62686583,210.45,210.37,11.8838]
[1731267271368,38.62686583,210.41,210.37,11.8838]
[1731267271568,38.62686583,210.4,210.37,16.6373]
[1731267271769,38.62686583,210.39,210.37,11.8838]
[1731267272784,38.62686583,210.39,210.32,38.62686583]
[1731267272979,38.62686583,210.38,210.34,4.754]
[1731267273591,38.62686583,210.37,210.33,16.6404]
[1731267273896,38.62686583,210.35,210.33,11.886]
[1731267274193,38.62686583,210.36,210.33,11.886]
[1731267275295,38.62686583,210.37,210.33,11.886]
[1731267275794,38.62686583,210.36,210.29,38.62686583]
[1731267277177,38.62686583,210.36,210.3,38.62686583]
[1731267277369,38.62686583,210.36,210.29,38.62686583]
[1731267277574,38.62686583,210.35,210.29,38.62686583]
[1731267277788,38.62686583,210.35,210.28,38.62686583]
[1731267277977,38.62686583,210.35,210.29,50.51516583]
[1731267279198,38.62686583,210.36,210.29,50.51516583]
[1731267279900,38.62686583,210.35,210.29,55.27046583]
[1731267280194,38.62686583,210.35,210.29,16.6436]
[1731267280706,38.62686583,210.35,210.29,55.27046583]
[1731267281278,38.62686583,210.34,210.29,16.6436]
[1731267281698,38.62686583,210.35,210.29,16.6436]
[1731267282497,38.62686583,210.39,210.33,38.62686583]
[1731267282995,38.62686583,210.39,210.32,38.62686583]
[1731267283795,38.62686583,210.37,210.32,4.7546]
[1731267284207,38.62686583,210.36,210.3,43.38186583]
[1731267284397,38.62686583,210.35,210.3,4.755]
[1731267285102,38.62686583,210.36,210.3,4.755]
[1731267285288,38.62686583,210.36,210.3,43.38186583]
[1731267285495,38.62686583,210.36,210.3,4.755]
[1731267285789,38.62686583,210.34,210.29,11.8883]
[1731267286001,38.62686583,210.34,210.29,16.6436]
[1731267286183,38.62686583,210.35,210.29,16.6436]
[1731267286384,38.62686583,210.35,210.29,55.27046583]
[1731267286700,43.38056583,210.36,210.3,38.62686583]
[1731267286903,71.80016583,210.38,210.31,38.62686583]
[1731267287290,0.12549,210.37,210.31,38.62686583]
[1731267288201,38.62686583,210.39,210.32,38.62686583]
[1731267288407,28.42,210.4,210.34,38.62686583]
[1731267288708,16.4794,210.41,210.35,38.62686583]
[1731267289106,55.10626583,210.41,210.34,38.62686583]
[1731267289427,38.62686583,210.39,210.3,16.6426]
[1731267289716,38.62686583,210.34,210.3,11.8877]
[1731267290209,38.62686583,210.35,210.3,11.8877]
[1731267290888,38.62686583,210.33,210.3,11.8877]
[1731267291088,38.62686583,210.31,210.27,4.7556]
[1731267291283,38.62686583,210.32,210.27,4.7556]
[1731267291491,38.62686583,210.31,210.27,4.7556]
[1731267291912,38.62686583,210.32,210.27,4.7556]
[1731267292408,38.62686583,210.33,210.27,4.7556]
[1731267292618,38.75235583,210.38,210.31,38.62686583]
[1731267292813,0.12549,210.38,210.33,38.62686583]
[1731267293901,0.12549,210.38,210.34,4.7542]
[1731267295034,38.62686583,210.35,210.32,11.8863]
[1731267295211,38.62686583,210.37,210.32,16.6409]
[1731267295807,43.50565583,210.38,210.32,16.6409]
[1731267296129,38.75235583,210.38,210.32,16.6409]
[1731267296329,0.12549,210.38,210.32,55.26776583]
[1731267296511,38.75235583,210.38,210.32,55.26776583]
[1731267297622,0.12549,210.38,210.32,55.26776583]
[1731267298508,0.12549,210.38,210.32,11.8863]
[1731267299340,0.12549,210.38,210.34,38.62686583]
[1731267300715,0.12549,210.38,210.35,4.7539]
[1731267302136,0.12549,210.38,210.37,38.62686583]
[1731267302338,0.12549,210.38,210.37,62.40374983]
[1731267302709,0.12549,210.38,210.37,67.15724983]
[1731267302972,0.12549,210.38,210.37,28.530384]
[1731267303116,0.12549,210.38,210.35,11.8849]
[1731267303316,0.12549,210.38,210.35,16.6387]
[1731267303945,38.62686583,210.37,210.35,11.8849]
[1731267304124,38.62686583,210.36,210.33,4.7542]
[1731267304327,38.62686583,210.37,210.33,4.7542]
[1731267305145,38.62686583,210.37,210.31,16.6419]
[1731267305314,0.12549,210.38,210.32,62.40374983]
[1731267305514,0.12549,210.38,210.33,38.62686583]
[1731267305716,0.12549,210.38,210.35,38.62686583]
[1731267305934,0.12549,210.38,210.36,38.62686583]
[1731267306316,0.12549,210.38,210.33,38.62686583]
[1731267306533,38.75235583,210.38,210.32,23.776884]
[1731267306740,38.62686583,210.37,210.31,40.4163]
[1731267306924,38.75235583,210.38,210.31,79.04316583]
[1731267308346,0.12549,210.38,210.34,38.62686583]
[1731267308644,0.12549,210.38,210.33,38.62686583]
[1731267309026,0.12549,210.38,210.37,38.62686583]
[1731267309346,0.12549,210.38,210.36,38.62686583]
[1731267309737,0.12549,210.38,210.35,23.776884]
[1731267309949,0.12549,210.38,210.36,16.638]
[1731267310247,0.12549,210.38,210.36,11.8843]
[1731267310560,38.75235583,210.38,210.34,4.754]
[1731267310837,38.62686583,210.36,210.32,16.6408]
[1731267312025,38.62686583,210.37,210.32,16.6408]
[1731267312344,38.75235583,210.38,210.32,16.6408]
[1731267312844,0.12549,210.38,210.32,55.26766583]
[1731267313338,38.75235583,210.38,210.32,16.6408]
[1731267314744,38.75235583,210.38,210.32,38.62686583]
[1731267314949,0.12549,210.38,210.32,38.62686583]
[1731267315152,38.62686583,210.37,210.3,38.62686583]
[1731267315826,38.62686583,210.37,210.27,23.776884]
[1731267315827,38.62686583,210.36,210.27,23.776884]
[1731267316023,38.62686583,210.37,210.3,38.62686583]
[1731267316424,38.75235583,210.38,210.32,23.776884]
[1731267316821,38.62686583,210.37,210.32,11.8864]
[1731267317021,38.62686583,210.36,210.32,11.8864]
[1731267317351,38.62686583,210.35,210.3,4.755]
[1731267318345,38.62686583,210.36,210.3,16.6427]
[1731267318540,38.62686583,210.34,210.3,16.6427]
[1731267318732,38.62686583,210.32,210.28,4.7553]
[1731267318931,38.62686583,210.32,210.26,16.6459]
[1731267319348,38.62686583,210.31,210.26,16.6459]
[1731267319544,38.62686583,210.32,210.26,55.27276583]
[1731267319750,67.17235583,210.31,210.26,16.6459]
[1731267319930,38.62686583,210.3,210.26,16.6459]
[1731267320955,38.62686583,210.3,210.26,11.8899]
[1731267321243,38.62686583,210.29,210.26,11.8899]
[1731267321626,38.62686583,210.3,210.26,11.8899]
[1731267321835,38.62686583,210.34,210.27,38.62686583]
[1731267322273,38.62686583,210.29,210.22,11.8921]
[1731267322560,38.62686583,210.23,210.18,11.8944]
[1731267322768,38.62686583,210.24,210.18,16.6522]
[1731267322943,38.62686583,210.25,210.18,55.27906583]
[1731267324064,38.62686583,210.26,210.19,38.62686583]
[1731267324273,38.62686583,210.25,210.18,38.62686583]
[1731267324448,38.62686583,210.25,210.17,38.62686583]
[1731267324838,38.62686583,210.24,210.17,38.62686583]
[1731267325038,38.62686583,210.23,210.16,38.62686583]
[1731267325255,38.62686583,210.22,210.15,62.41926583]
[1731267325857,38.62686583,210.23,210.16,62.40374983]
[1731267326058,38.62686583,210.24,210.16,62.40374983]
[1731267326241,38.62686583,210.25,210.18,62.40374983]
[1731267326756,38.62686583,210.22,210.18,23.776884]
[1731267326962,38.62686583,210.24,210.18,23.776884]
[1731267328342,38.62686583,210.25,210.19,16.6516]
[1731267328765,38.62686583,210.24,210.19,16.6516]
[1731267329344,38.62686583,210.23,210.19,11.894]
[1731267330570,38.62686583,210.24,210.19,11.894]
[1731267331060,33.176,210.26,210.19,11.894]
[1731267331061,38.62686583,210.23,210.19,11.894]
[1731267333755,38.62686583,210.24,210.19,11.894]
[1731267334155,28.42,210.26,210.19,11.894]
[1731267334156,38.62686583,210.23,210.19,11.894]
[1731267337172,38.62686583,210.26,210.2,23.776884]
[1731267337467,28.42,210.31,210.25,38.62686583]
[1731267337764,38.62686583,210.29,210.22,38.62686583]
[1731267337945,28.54549,210.28,210.2,23.776884]
[1731267338955,0.12549,210.28,210.2,23.776884]
[1731267339158,38.75235583,210.28,210.2,62.40374983]
[1731267339572,38.75235583,210.28,210.21,16.6499]
[1731267340783,38.62686583,210.28,210.22,23.776884]
[1731267340976,38.62686583,210.23,210.22,23.776884]
[1731267341175,0.12549,210.21,210.09,6.2669]
[1731267341355,38.62686583,210.15,210.11,11.8984]
[1731267341553,38.62686583,210.13,210.11,11.8984]
[1731267341884,38.62686583,210.12,210.06,16.6614]
[1731267342080,38.62686583,210.1,210.06,16.6614]
[1731267342387,38.62686583,210.1,210.02,38.62686583]
[1731267342561,38.62686583,210.08,210.01,50.53076583]
[1731267342875,38.62686583,210.08,210.01,11.9039]
[1731267343081,38.62686583,210.06,210.01,11.9039]
[1731267343467,38.62686583,210.04,210.01,11.9039]
[1731267343774,28.42,210.09,210.01,11.9039]
[1731267343775,38.62686583,210.03,210.01,11.9039]
[1731267343976,38.62686583,210.02,209.97,4.7625]
[1731267344184,38.62686583,210.01,209.97,4.7625]
[1731267344397,38.62686583,210.04,209.97,43.38936583]
[1731267344763,38.62686583,210.05,209.98,38.62686583]
[1731267344962,38.62686583,210.04,209.97,43.38936583]
[1731267345168,38.62686583,210.03,209.97,4.7625]
[1731267345499,38.62686583,210.02,209.97,4.7625]
[1731267345681,38.62686583,210.01,209.97,4.7625]
[1731267345890,38.62686583,210.0,209.97,4.7625]
[1731267346193,38.62686583,210.02,209.97,4.7625]
[1731267346360,38.62686583,210.03,209.97,4.7625]
[1731267347065,38.62686583,210.02,209.98,23.776884]
[1731267347377,38.62686583,210.05,210.01,23.776884]
[1731267347578,38.62686583,210.03,210.01,23.776884]
[1731267347878,38.62686583,210.02,210.01,23.776884]
[1731267348274,38.62686583,210.04,210.01,23.776884]
[1731267348582,38.62686583,210.04,210.0,23.776884]
[1731267349171,38.62686583,210.03,210.0,23.776884]
[1731267349370,11.048,210.08,210.0,23.776884]
[1731267349371,38.62686583,210.02,210.0,23.776884]
[1731267349561,38.62686583,210.01,210.0,23.776884]
[1731267350179,38.62686583,210.02,210.0,23.776884]
[1731267350974,38.62686583,210.02,209.97,4.7624]
[1731267351177,38.62686583,210.02,209.98,23.776884]
[1731267351382,38.62686583,210.01,209.95,16.6704]
[1731267351563,38.62686583,210.01,209.95,55.29726583]
[1731267351987,38.62686583,210.03,209.96,38.62686583]
[1731267352376,38.62686583,210.02,209.95,16.6704]
[1731267352578,38.62686583,210.02,209.96,62.40374983]
[1731267353687,38.62686583,210.02,209.97,4.7625]
[1731267353891,38.62686583,210.02,209.96,35.683684]
[1731267353892,38.62686583,210.01,209.96,35.683684]
[1731267354190,38.62686583,210.01,209.96,11.9068]
[1731267354393,38.62686583,210.0,209.96,11.9068]
[1731267355279,38.62686583,209.99,209.96,11.9068]
[1731267355601,38.62686583,209.98,209.92,28.540584]
[1731267355800,38.62686583,209.99,209.92,67.16744983]
[1731267355989,38.62686583,209.99,209.93,38.62686583]
[1731267356186,38.62686583,209.99,209.94,23.776884]
[1731267356579,38.62686583,209.98,209.93,23.776884]
[1731267357004,38.62686583,209.99,209.94,4.7632]
[1731267357198,38.62686583,209.99,209.95,23.776884]
[1731267359005,38.62686583,209.98,209.95,23.776884]
[1731267359183,38.62686583,209.97,209.95,23.776884]
[1731267359594,38.62686583,209.99,209.95,23.776884]
[1731267359787,38.62686583,209.99,209.96,23.776884]
[1731267360283,38.62686583,210.01,209.96,23.776884]
[1731267360693,38.62686583,210.0,209.96,23.776884]
[1731267361225,38.62686583,209.97,209.95,23.776884]
[1731267361506,38.62686583,209.96,209.94,23.776884]
[1731267361682,38.62686583,209.97,209.94,23.776884]
[1731267362082,38.62686583,209.95,209.94,23.776884]
[1731267362283,38.62686583,209.95,209.9,4.7639]
[1731267362496,38.62686583,209.94,209.9,4.7639]
[1731267362702,38.62686583,209.95,209.9,4.7639]
[1731267362907,38.62686583,209.91,209.89,11.9107]
[1731267363083,28.54549,209.95,209.84,11.9135]
[1731267363279,4.7632,209.94,209.84,11.9135]
[1731267363497,38.62686583,209.88,209.84,11.9135]
[1731267363680,4.7632,209.94,209.84,11.9135]
[1731267363681,38.62686583,209.89,209.84,11.9135]
[1731267363883,38.62686583,209.88,209.84,11.9135]
[1731267364406,38.62686583,209.88,209.8,4.7664]
[1731267364407,38.62686583,209.85,209.8,4.7664]
[1731267364606,38.62686583,209.82,209.8,4.7664]
[1731267364803,38.62686583,209.82,209.75,38.62686583]
[1731267365010,38.62686583,209.81,209.74,4.7678]
[1731267365217,38.62686583,209.75,209.64,23.8502]
[1731267365388,38.62686583,209.66,209.63,16.696]
[1731267366302,38.62686583,209.64,209.59,11.928]
[1731267366614,20.0,209.73,209.59,11.928]
[1731267366788,38.62686583,209.6,209.59,11.928]
[1731267366984,20.1,209.73,209.59,11.928]
[1731267366985,38.62686583,209.61,209.59,11.928]
[1731267367190,38.62686583,209.6,209.53,38.62686583]
[1731267367415,38.62686583,209.57,209.53,11.9313]
[1731267367796,38.62686583,209.61,209.54,38.62686583]
[1731267368005,55.21136583,209.63,209.56,38.62686583]
[1731267368210,55.21136583,209.63,209.53,11.9313]
[1731267368394,38.62686583,209.62,209.56,38.62686583]
[1731267368593,38.62686583,209.69,209.61,38.62686583]
[1731267368797,16.434,209.71,209.63,38.62686583]
[1731267369002,38.62686583,209.69,209.63,38.62686583]
[1731267369492,55.06086583,209.71,209.65,23.776884]
[1731267369693,38.62686583,209.66,209.6,23.776884]
[1731267370217,38.62686583,209.69,209.62,62.40374983]
[1731267370394,16.434,209.71,209.65,38.62686583]
[1731267370598,38.62686583,209.73,209.66,38.62686583]
[1731267370907,38.62686583,209.72,209.66,38.62686583]
[1731267371205,38.62686583,209.69,209.62,38.62686583]
[1731267371411,38.62686583,209.7,209.63,62.40374983]
[1731267371598,38.62686583,209.7,209.59,4.7712]
[1731267371599,38.62686583,209.7,209.65,23.776884]
[1731267371992,6.3478,209.74,209.68,38.62686583]
[1731267372192,38.62686583,209.77,209.65,23.776884]
[1731267372392,38.62686583,209.76,209.69,38.62686583]
[1731267372812,16.434,209.78,209.73,38.62686583]
[1731267373112,38.62686583,209.79,209.73,38.62686583]
[1731267373497,38.62686583,209.79,209.7,23.776884]
[1731267373705,38.62686583,209.8,209.73,38.62686583]
[1731267374406,38.62686583,209.79,209.72,23.776884]
[1731267374623,38.62686583,209.78,209.72,23.776884]
[1731267375014,38.62686583,209.79,209.72,38.62686583]
[1731267375398,38.62686583,209.8,209.72,38.62686583]
[1731267375614,38.62686583,209.78,209.72,23.776884]
[1731267376116,38.62686583,209.83,209.76,38.62686583]
[1731267376311,38.62686583,209.82,209.76,23.776884]
[1731267376616,16.434,209.84,209.71,16.6895]
[1731267376617,38.62686583,209.8,209.73,38.62686583]
[1731267376821,38.62686583,209.81,209.74,23.776884]
[1731267377027,38.62686583,209.81,209.74,38.62686583]
[1731267377402,28.42,209.82,209.73,23.776884]
[1731267377403,38.62686583,209.8,209.73,62.40374983]
[1731267377914,38.62686583,209.78,209.72,11.9206]
[1731267378296,67.04686583,209.8,209.73,38.62686583]
[1731267378499,71.81336583,209.8,209.73,38.62686583]
[1731267378903,38.62686583,209.78,209.71,38.62686583]
[1731267379098,38.62686583,209.74,209.69,11.9223]
[1731267379306,38.62686583,209.76,209.69,50.54916583]
[1731267379719,33.2865,209.8,209.69,16.6912]
[1731267379720,38.62686583,209.75,209.69,16.6912]
[1731267379920,28.42,209.77,209.72,38.62686583]